Cogmind - Beta 15 @@@ ROGUE MODE // 2025.08.22 @ 17:51:04 Player: winnking222 Result: Destroyed by Tracker with Linked Autogun Performance ------------- Evolutions (6) 3000 Regions Visited (14) 2800 Robots Destroyed (65) 325 Value Destroyed (1715) 1715 Prototype IDs (240) 4800 Alien Tech Used (0) 0 Bonus (4748) 4748 TOTAL SCORE: 17388 Bonus ------- Follower Combat Kills 148 Entered DSFs 500 Aligned with FarCom 300 Met Data Miner 300 Used Data Conduit 3000 Pursued by Intercept 500 Cogmind --------- Core Integrity 0/1150 Matter 208/300 Energy 98/100 System Corruption 12% Temperature Cool (0) Movement Core (50) Location -4/Factory Parts ------- > --- POWER (2) -------- (None) > --- PROPULSION (6) --- (None) > --- UTILITY (9) ------ (None) > --- WEAPON (2) ------- (None) > --- INVENTORY (5) ---- Improved Actuator Array Makeshift Transmission Jammer Advanced System Restoration Module Firepult Peak State ------------ > --- POWER ------------ Micro Fission Core > --- PROPULSION ------- Improved Gyrokinetic Inverter Improved Linear Gravjet Field Propulsion Drive Impulse Thruster Impulse Thruster Impulse Thruster > --- UTILITY ---------- Medium Storage Unit Improved Melee Analysis Suite Advanced Melee Analysis Suite Advanced Melee Analysis Suite Reaction Control System Light Regenerative Plating Hacking Suite Makeshift Hacking Suite > --- WEAPON ----------- Firepult > --- INVENTORY -------- High-capacity Storage Unit Improved Actuator Array Makeshift Transmission Jammer Advanced System Restoration Module Remote Datajack [Rating: 100] Favorites ----------- Power Reinforced Ion Engine Engine Reinforced Ion Engine Power Core Micro Nuclear Core Propulsion Xenon Bombardment Thruster Treads Light Treads Leg Aluminum Leg Wheel Wheel Hover Unit Improved Gyrokinetic Inverter Flight Unit Xenon Bombardment Thruster Utility Medium Storage Unit Device Improved Heat Sink Storage Medium Storage Unit Processor Advanced Melee Analysis Suite Hackware Makeshift Hacking Suite Protection Layered Medium Armor Plating Weapon Spear Energy Gun EM Pulse Gun Energy Cannon Plasma Cannon Ballistic Gun High-powered Shotgun Ballistic Cannon Light Cannon Launcher Rocket Launcher Special Weapon Remote Datajack Piercing Weapon Spear Build | -11 -10 -10 -10 -9 -8 -7 -6 -6 -6 -6 -5 -5 -5 -4 ------- Run | Yrd Mat Min Exi Min Mat Fac Fac Low Low Dat Pro Fac DSF Fac Slots Evolved 12 | . . . . . 4 2 2 . . . . 2 . 2 Power 1 | . . . . . . . . . . . . 1 . . Propulsion 4 | . . . . . 2 1 1 . . . . . . . Utility 7 | . . . . . 2 1 1 . . . . 1 . 2 Weapon . | . . . . . . . . . . . . . . . Parts Attached 106 | 7 12 4 . 6 24 17 11 2 6 . 1 4 . 12 Power 7 | 1 1 . . 1 . 1 1 . . . . 2 . . Engine 4 | 1 1 . . 1 . . . . . . . 1 . . Core 3 | . . . . . . 1 1 . . . . 1 . . Reactor . | . . . . . . . . . . . . . . . Propulsion 35 | 2 2 . . 3 10 7 1 . 3 . . 1 . 6 Treads 2 | 2 . . . . . . . . . . . . . . Leg 14 | . 2 . . 3 8 1 . . . . . . . . Wheel 1 | . . . . . 1 . . . . . . . . . Hover 3 | . . . . . . . . . . . . . . 3 Flight 15 | . . . . . 1 6 1 . 3 . . 1 . 3 Utility 40 | 2 1 2 . 1 9 7 6 2 3 . 1 1 . 5 Device 16 | 1 . 1 . . 4 5 2 1 1 . . . . 1 Storage 5 | 1 1 . . . 3 . . . . . . . . . Processor 9 | . . . . . 1 1 2 1 2 . . . . 2 Hackware 3 | . . . . . . . . . . . 1 . . 2 Protection 7 | . . 1 . 1 1 1 2 . . . . 1 . . Artifact . | . . . . . . . . . . . . . . . Weapon 24 | 2 8 2 . 1 5 2 3 . . . . . . 1 Energy Gun 11 | 2 5 2 . . 2 . . . . . . . . . Energy Cannon 4 | . . . . . 1 2 1 . . . . . . . Ballistic Gun 4 | . 2 . . . 2 . . . . . . . . . Ballistic Cannon 1 | . 1 . . . . . . . . . . . . . Launcher 1 | . . . . 1 . . . . . . . . . . Special Weapon 1 | . . . . . . . . . . . . . . 1 Impact Weapon . | . . . . . . . . . . . . . . . Slashing Weapon . | . . . . . . . . . . . . . . . Piercing Weapon 2 | . . . . . . . 2 . . . . . . . Special Melee Weapon . | . . . . . . . . . . . . . . . Unidentified Prototypes 4 | . . . . . 3 . 1 . . . . . . . Parts Lost 38 | . 5 1 . 2 2 . . . 2 2 1 . 8 15 Power 2 | . . . . . . . . . . . . . 1 1 Propulsion 18 | . 2 . . . 1 . . . 2 1 1 . 4 7 Utility 13 | . . 1 . 1 1 . . . . 1 . . 2 7 Weapon 5 | . 3 . . 1 . . . . . . . . 1 . Highest Loss Streak 11 | . 4 1 . 2 2 . . . 2 2 1 . 8 11 To Critical Strikes . | . . . . . . . . . . . . . . . Average Backups 8 | 6 7 9 9 8 10 11 7 8 7 7 6 8 9 7 Power . | . . . . . . . . . . . . 1 1 . Propulsion 1 | 3 1 2 3 3 1 2 1 2 . . . . . . Utility 4 | . 2 4 4 3 5 5 3 5 5 6 5 4 5 4 Weapon 2 | 1 3 2 2 1 1 3 1 1 . 1 1 2 1 . Tool/Special . | . . . . . . . . . . . . . . . Unused Backups 23 | 1 1 1 2 1 1 6 2 . . . 1 1 2 4 Power 2 | . . . . . . 1 . . . . 1 . . . Propulsion 4 | 1 . . 1 . 1 1 . . . . . . . . Utility 12 | . 1 1 . 1 . 2 1 . . . . 1 1 4 Weapon 5 | . . . 1 . . 2 1 . . . . . 1 . Tool/Special . | . . . . . . . . . . . . . . . Average Slot Usage (%) 87 | . 97 99 100 92 90 92 96 100 95 93 78 72 74 50 Engine 6 | . 14 14 14 14 9 6 . . . . . 1 3 . Core 2 | . . . . . . . 6 6 6 6 6 3 . 1 Treads 1 | . 11 . . . . . . . . . . . . . Leg 14 | . 15 28 28 28 29 28 . . . . . . . . Flight 14 | . . . . . . 3 40 40 39 40 30 24 26 12 Device 10 | . 14 6 . . 13 15 14 13 14 13 13 10 8 . Storage 8 | . 14 14 14 14 9 7 6 6 6 6 6 5 5 4 Processor 8 | . . . . . 8 9 14 12 11 13 13 11 11 13 Hackware 1 | . . . . . . . . . . . 1 5 5 6 Protection 3 | . . 7 14 9 2 4 2 6 4 6 . 1 5 1 Energy Gun 8 | . 21 28 28 21 8 4 . . . . . . . . Energy Cannon 1 | . . . . . . 9 . . . . . . . . Ballistic Gun 1 | . 2 . . . 6 . . . . . . . . . Piercing Weapon 2 | . . . . . . . 10 13 10 6 4 5 5 . Peak Build Rating 100 | 7 8 8 10 19 42 45 67 62 70 58 62 63 63 100 Average Rating 35 | 5 6 7 8 12 28 33 58 60 60 57 49 53 52 54 On Entrance 31 | . 7 7 8 10 19 26 40 61 60 58 45 49 63 26 Naked Turns 1 | . . . . . . . . . . . . . . 1 Heaviest Build 58 | 13 18 20 20 29 58 49 31 31 48 28 40 28 28 42 Greatest Support 55 | 40 40 20 20 35 55 55 35 35 35 33 27 28 28 28 Greatest Overweight (x) 4 | 3 4 . . . 1 1 . . 1 . 1 . 1 3 Average Overweight (x) . | . . . . . . . . . . . . . . . Largest Inventory Capacity 20 | 8 10 10 10 10 20 15 10 10 10 10 10 10 10 10 Average Capacity 10 | 7 9 10 10 10 12 14 10 10 10 10 10 10 10 9 Most Carried 15 | 8 10 10 10 10 15 15 10 10 10 10 10 10 10 10 Average Carried 10 | 6 7 9 9 9 12 13 9 9 8 9 7 9 9 8 Final Capacity 15 | 8 10 10 10 10 15 10 10 10 10 10 10 10 10 5 Final Carried 15 | 6 9 10 10 10 15 10 10 10 9 10 10 10 10 5 Class Distribution -------------------- 35% | Mutant 25% | Scavenger-Mutant 24% | Sprinter 8% | Scout Dominant Class ---------------- Mutant | -10/Materials Mutant | -10/Mines Mutant | -10/Exiles Mutant | -9/Mines Scavenger-Mutant | -8/Materials Scavenger-Mutant | -7/Factory Sprinter | -6/Factory Scout | -6/Lower Caves Sprinter | -6/Lower Caves Sprinter | -6/Data Miner Sprinter | -5/Proximity Caves Scout | -5/Factory Derelict-Sprinter | -5/DSF Mutant | -4/Factory Resources | -11 -10 -10 -10 -9 -8 -7 -6 -6 -6 -6 -5 -5 -5 -4 ----------- Run | Yrd Mat Min Exi Min Mat Fac Fac Low Low Dat Pro Fac DSF Fac Matter Collected 1831 | 270 204 40 . 120 544 153 207 70 130 . 55 10 . 28 Remotely . | . . . . . . . . . . . . . . . Salvage Created 2165 | 148 443 98 . 63 697 251 21 . 89 . 258 10 . 87 Parts 119 | 17 24 7 . 9 36 9 . . 5 . 6 1 . 5 Haulers Intercepted 5 | . 2 . . . 3 . . . . . . . . . Recyclers Shooed 3 | 1 1 . . . . 1 . . . . . . . . Parts Field Recycled . | . . . . . . . . . . . . . . . Retrieved Matter . | . . . . . . . . . . . . . . . Parts Self-Destructed 18 | . . . . . . . . . 13 . 5 . . . Prevented . | . . . . . . . . . . . . . . . Kills | -11 -10 -10 -10 -9 -8 -7 -6 -6 -6 -6 -5 -5 -5 -4 ------- Run | Yrd Mat Min Exi Min Mat Fac Fac Low Low Dat Pro Fac DSF Fac Combat Hostiles Destroyed 52 | . 8 4 . 10 17 4 . . 4 . 4 . . 1 Melee 3 | . . . . . . . . . 3 . . . . . Guns 24 | . 4 4 . 3 13 . . . . . . . . . Cannons 7 | . 4 . . . . 3 . . . . . . . . AOE 16 | . . . . 7 3 . . . 1 . 4 . . 1 Classes Destroyed 14 | 2 5 . . 1 4 1 . . . . . 1 . . Worker 2 | . . . . . 1 . . . . . . . . 1 Builder 1 | . . . . . . . . . . . . 1 . . Tunneler 5 | 4 1 . . . . . . . . . . . . . Hauler 5 | . 2 . . . 3 . . . . . . . . . Recycler 2 | 1 . . . . . 1 . . . . . . . . Operator 1 | . 1 . . . . . . . . . . . . . Watcher 3 | . 2 . . . . . 1 . . . . . . . Swarmer 21 | . 3 3 . 4 4 . . . 3 . 4 . . . Grunt 19 | . 5 1 . . 10 2 . . . . . . . 1 Brawler 1 | . . . . . 1 . . . . . . . . . Sentry 2 | . . . . . 1 . . . 1 . . . . . Hunter 2 | . . . . . 1 1 . . . . . . . . Programmer 1 | . . . . . . 1 . . . . . . . . Assembled 6 | . . . . 6 . . . . . . . . . . Best Kill Streak 10 | 3 4 3 . 6 10 2 1 . 3 . 2 1 . 1 Combat Bots Only 9 | . 4 3 . 6 9 2 . . 3 . 2 . . 1 Max Kills in Single Turn 2 | 1 1 1 . 2 2 1 1 . 1 . 2 1 . 1 Gunslinging . | . . . . . . . . . . . . . . . Exploded 2 | . . . . 2 2 . . . 1 . 2 . . 1 Melee 1 | . . . . . . . . . 1 . . . . . Uniques/NPCs Destroyed . | . . . . . . . . . . . . . . . Combat | -11 -10 -10 -10 -9 -8 -7 -6 -6 -6 -6 -5 -5 -5 -4 -------- Run | Yrd Mat Min Exi Min Mat Fac Fac Low Low Dat Pro Fac DSF Fac Hostile Shots Fired 571 | . 103 20 . 56 111 17 . 16 27 7 15 2 63 134 Missed 172 | . 32 6 . 17 23 2 . 8 7 3 4 1 26 43 Hits 399 | . 71 14 . 39 88 15 . 8 20 4 11 1 37 91 Projectile 399 | . 71 14 . 39 88 15 . 8 20 4 11 1 37 91 Critical Strikes 11 | . . . . . 2 2 . 1 . . . . . 6 Damage Taken 6151 | . 756 150 . 380 1226 217 56 129 330 184 162 23 491 2047 Core 2009 | . 138 36 . 67 235 58 28 . 66 . 15 . 199 1167 Absorbed by Shields . | . . . . . . . . . . . . . . . Ignored by Resistances 18 | . . . . . . 18 . . . . . . . . Regen/Repaired (Parts) 83 | . . . . . . . . . . . . . 3 80 Core Remaining (%) 69 | 100 . . . 3 57 91 . . . . 87 . 80 . Volleys Fired 166 | 13 50 8 . 18 49 16 3 . 2 . 4 . . 3 Largest 2 | 2 2 2 . 2 2 2 1 . 1 . 1 . . 1 Hottest 250 | 80 80 80 . 80 250 140 250 . 250 . 250 . . 250 Shots Fired 304 | 26 99 16 . 27 92 32 3 . 2 . 4 . . 3 Gun 231 | 26 82 16 . 20 87 . . . . . . . . . Cannon 62 | . 17 . . . 2 32 3 . 2 . 4 . . 2 Launcher 10 | . . . . 7 3 . . . . . . . . . Special 1 | . . . . . . . . . . . . . . 1 Kinetic 92 | . 26 . . . 66 . . . . . . . . . Thermal 102 | 26 10 . . . 23 32 3 . 2 . 4 . . 2 Explosive 10 | . . . . 7 3 . . . . . . . . . Electromagnetic 99 | . 63 16 . 20 . . . . . . . . . . Robot Hit Streak 19 | 5 6 7 . 3 19 4 . . 7 . 4 . . 1 Robot Miss Streak 6 | 3 3 2 . 5 6 4 4 . 1 . 2 . . . Penetration Max . | . . . . . . . . . . . . . . . Secondary Targets 5 | . 1 1 . 1 2 . . . . . . . . . Max Gunslinging Chain 1 | . 1 1 . 1 1 . . . . . . . . . Shots Hit Robots 196 | 16 52 13 . 12 73 14 . . 7 1 6 1 . 1 Core Hits 123 | 6 24 5 . 15 47 7 2 . 5 . 9 . . 3 Critical Kills 1 | . . . . . . 1 . . . . . . . . Critical Parts Destroyed 1 | . . . . . 1 . . . . . . . . . Critical Strikes 7 | . 2 . . . 3 1 . . 1 . . . . . Burn 2 | . . . . . 2 . . . . . . . . . Meltdown 1 | . . . . . . 1 . . . . . . . . Destroy 1 | . . . . . 1 . . . . . . . . . Blast 1 | . 1 . . . . . . . . . . . . . Corrupt 1 | . 1 . . . . . . . . . . . . . Impale 1 | . . . . . . . . . 1 . . . . . Melee Attacks 88 | . . . . . . . 23 14 18 6 3 22 2 . Impact . | . . . . . . . . . . . . . . . Slashing . | . . . . . . . . . . . . . . . Piercing 88 | . . . . . . . 23 14 18 6 3 22 2 . Sneak Attacks 2 | . . . . . . . . . . 1 . 1 . . Combat Hostiles . | . . . . . . . . . . . . . . . Follow-up Attacks 1 | . . . . . . . . . 1 . . . . . Damage Inflicted 4832 | 178 841 205 . 503 1719 354 39 . 255 89 466 78 . 105 Guns 2266 | 178 609 152 . 84 1243 . . . . . . . . . Cannons 653 | . 217 . . . 22 343 . . 34 . 37 . . . Explosions 1313 | . . 53 . 419 446 . 39 . 72 . 196 . . 88 Melee 549 | . . . . . . . . . 149 89 233 78 . . Ramming 51 | . 15 . . . 8 11 . . . . . . . 17 Kinetic 1197 | . 269 . . . 928 . . . . . . . . . Thermal 1684 | 178 67 53 . 21 556 343 39 . 106 . 233 . . 88 Explosive 625 | . . . . 398 227 . . . . . . . . . Electromagnetic 726 | . 490 152 . 84 . . . . . . . . . . Impact . | . . . . . . . . . . . . . . . Slashing . | . . . . . . . . . . . . . . . Piercing 549 | . . . . . . . . . 149 89 233 78 . . Highest Corruption 12 | . . . . . . 1 . . . . . . . 12 Average Corruption 1 | . . . . . . 1 . . . . . . . 4 Corruption Purged . | . . . . . . . . . . . . . . . Corruption Blocked . | . . . . . . . . . . . . . . . Effects 4 | . . . . . . 3 . . . . . . . 1 Message Errors 2 | . . . . . . 1 . . . . . . . 1 Matter Fused 1 | . . . . . . 1 . . . . . . . . Data Loss (major) 1 | . . . . . . 1 . . . . . . . . Overload Shots . | . . . . . . . . . . . . . . . Overflow Damage 161 | . . . . . . . . . 39 . 74 48 . . Projectiles . | . . . . . . . . . . . . . . . Explosions . | . . . . . . . . . . . . . . . Melee 161 | . . . . . . . . . 39 . 74 48 . . Knockbacks . | . . . . . . . . . . . . . . . Impact . | . . . . . . . . . . . . . . . Kinetic . | . . . . . . . . . . . . . . . Secondary . | . . . . . . . . . . . . . . . Self-Inflicted Damage 60 | . . 25 . 21 . . . . 6 . . . . 8 Shots 3 | . . 1 . 1 . . . . 1 . . . . . Rammed 1 | . . . . . . . . . . . . . . 1 Targets Rammed 9 | . 5 . . . 2 1 . . . . . . . 1 Kicked 8 | . 5 . . . 2 1 . . . . . . . . Crushed . | . . . . . . . . . . . . . . . Highest Temperature 361 | 108 361 102 . 255 356 . 318 112 288 . 334 . 26 206 Average Temperature 95 | 47 123 48 . 117 53 . 111 34 131 . 173 . 17 82 Received Heat Transfer 1219 | . 264 30 . 40 486 99 . 27 9 . . 9 222 33 Effects 6 | . . . . . . . 2 . 1 . 3 . . . Energy Bleed 3 | . . . . . . . 2 . 1 . . . . . Interference 3 | . . . . . . . . . . . 3 . . . Siege Activations . | . . . . . . . . . . . . . . . Martial Activations . | . . . . . . . . . . . . . . . Shielding Activations . | . . . . . . . . . . . . . . . Robots Disrupted . | . . . . . . . . . . . . . . . Combat Hostiles . | . . . . . . . . . . . . . . . Robots Corrupted . | . . . . . . . . . . . . . . . Combat Hostiles . | . . . . . . . . . . . . . . . Parts Fried 2 | . 2 . . . . . . . . . . . . . Impact Corruptions . | . . . . . . . . . . . . . . . Robots Melted 3 | . . . . . 2 1 . . . . . . . . Combat Hostiles 2 | . . . . . 1 1 . . . . . . . . Parts Melted 26 | 1 1 . . . 9 8 1 . 2 . 4 . . . Heat Transferred 5827 | 400 150 100 . . 2248 609 160 . 480 . 1200 . . 480 Parts Sabotaged . | . . . . . . . . . . . . . . . Parts Stolen . | . . . . . . . . . . . . . . . Parts Stripped . | . . . . . . . . . . . . . . . Power Chain Reactions 2 | . . 1 . 1 . . . . . . . . . . Alert | -11 -10 -10 -10 -9 -8 -7 -6 -6 -6 -6 -5 -5 -5 -4 ------- Run | Yrd Mat Min Exi Min Mat Fac Fac Low Low Dat Pro Fac DSF Fac Maximum Alert Level 1 | . . . . . 1 . . . . . . . . 1 Low Security (%) 84 | 100 100 100 . 100 39 100 100 . . . . 100 100 58 Level 1 15 | . . . . . 60 . . . . . . . . 41 Level 2 . | . . . . . . . . . . . . . . . Level 3 . | . . . . . . . . . . . . . . . Level 4 . | . . . . . . . . . . . . . . . Level 5 . | . . . . . . . . . . . . . . . High Security . | . . . . . . . . . . . . . . . Max Security . | . . . . . . . . . . . . . . . Peak Influence 385 | 10 188 66 . 84 270 114 15 . . . . 46 10 385 Initial 114 | . . 18 . . 17 114 . . . . . 40 8 . Average 64 | . 79 8 . 37 164 21 . . . . . 6 4 145 Influence Increases 2267 | 25 366 106 . 159 565 135 35 45 90 . 145 52 2 542 Destroy 0b10 Robot/C 980 | . 160 80 . 80 340 80 . . 80 . 80 . . 80 Destroy 0b10 Robot/NC 135 | 25 30 . . . 20 5 5 . . . 10 5 . 35 Destroy Leader 206 | . 38 20 . 10 66 30 2 . 10 . 10 . . 20 Allied During Kill 10 | . . . . . . . . . . . . . . 10 Successful Hack 53 | . 17 . . . 6 5 . . . . . 7 . 18 Disable Machine 105 | . 30 . . 15 . . 15 . . . . . . 45 Destroy Structure 208 | . 1 6 . 54 28 . 13 . . . . 40 2 64 Partial Spotted 30 | . . . . . 15 . . . . . . . . 15 Lose Combat Pursuer 540 | . 90 . . . 90 15 . 45 . . 45 . . 255 Influence Decreases 2035 | 25 317 155 . 114 357 388 20 60 90 . 80 105 14 310 Entered New Map 233 | . . 31 . . 28 139 . 6 . . . 25 4 . Time Decay 1492 | 25 267 114 . 94 319 249 20 54 60 . 70 80 . 140 Lost Part 280 | . 50 10 . 20 10 . . . 20 . 10 . 10 150 Lost Ally 30 | . . . . . . . . . 10 . . . . 20 Squads Dispatched 21 | . 1 1 . . 3 3 2 . 1 . . 1 1 8 Investigation 4 | . . 1 . . . 1 . . . . . 1 . 1 Extermination 6 | . . . . . . 2 2 . . . . . . 2 Reinforcement 6 | . 1 . . . 3 . . . . . . . 1 1 Assault 1 | . . . . . . . . . 1 . . . . . Garrison 1 | . . . . . . . . . . . . . . 1 Intercept 3 | . . . . . . . . . . . . . . 3 Searches Triggered . | . . . . . . . . . . . . . . . Construction Impeded 1 | . . . . . . . . . . . . . . 1 Haulers Reinforced . | . . . . . . . . . . . . . . . Active Scanning Responses . | . . . . . . . . . . . . . . . Cargo Convoy Interrupts . | . . . . . . . . . . . . . . . Stealth | -11 -10 -10 -10 -9 -8 -7 -6 -6 -6 -6 -5 -5 -5 -4 --------- Run | Yrd Mat Min Exi Min Mat Fac Fac Low Low Dat Pro Fac DSF Fac Distress Signals 10 | . 2 . . 3 2 2 . . . . . . . 1 Communications Jammed . | . . . . . . . . . . . . . . . Distress Signals . | . . . . . . . . . . . . . . . Times Spotted 153 | . 20 6 . 23 30 8 1 9 4 4 7 3 3 35 Peak Tracking Total 15 | . 6 3 . 15 8 2 1 6 3 4 5 1 3 9 Tactical Retreats 19 | . 3 . . 3 2 1 . 2 . . 1 . . 7 Traps | -11 -10 -10 -10 -9 -8 -7 -6 -6 -6 -6 -5 -5 -5 -4 ------- Run | Yrd Mat Min Exi Min Mat Fac Fac Low Low Dat Pro Fac DSF Fac Traps Triggered 4 | . 1 . . . . . 1 . . . . . 1 1 Indirectly . | . . . . . . . . . . . . . . . Trap Hack Attempts . | . . . . . . . . . . . . . . . Triggered . | . . . . . . . . . . . . . . . Disarmed . | . . . . . . . . . . . . . . . Reprogrammed . | . . . . . . . . . . . . . . . Reused . | . . . . . . . . . . . . . . . Traps Extracted . | . . . . . . . . . . . . . . . Installed . | . . . . . . . . . . . . . . . Triggered . | . . . . . . . . . . . . . . . Machines | -11 -10 -10 -10 -9 -8 -7 -6 -6 -6 -6 -5 -5 -5 -4 ---------- Run | Yrd Mat Min Exi Min Mat Fac Fac Low Low Dat Pro Fac DSF Fac Machines Disabled 7 | . 2 . . 1 . . 1 . . . . . . 3 Max in Single Turn 1 | . 1 . . 1 . . 1 . . . . . . . Garrison Access 1 | . . . . . 1 . . . . . . . . . Machines Repaired . | . . . . . . . . . . . . . . . Machines Dismantled . | . . . . . . . . . . . . . . . Machines Sabotaged . | . . . . . . . . . . . . . . . Overloaded Fab Kills . | . . . . . . . . . . . . . . . Hacking | -11 -10 -10 -10 -9 -8 -7 -6 -6 -6 -6 -5 -5 -5 -4 --------- Run | Yrd Mat Min Exi Min Mat Fac Fac Low Low Dat Pro Fac DSF Fac Machines Accessed 23 | . 2 1 2 1 2 1 4 . . 4 . 2 . 4 Terminals 9 | . 2 . . . 1 1 2 . . . . 1 . 2 Fabricators 4 | . . . . . . . 2 . . . . 1 . 1 Repair Stations 1 | . . . . . . . . . . . . . . 1 Recycling Units . | . . . . . . . . . . . . . . . Scanalyzers . | . . . . . . . . . . . . . . . Garrison Access 1 | . . . . . 1 . . . . . . . . . Total Hacks 71 | . 8 1 5 1 5 4 6 . . 27 . 5 . 9 Successful 52 | . 5 1 5 1 2 2 . . . 27 . 3 . 6 Failed 19 | . 3 . . . 3 2 6 . . . . 2 . 3 Catastrophic 5 | . . . . . 2 . 3 . . . . . . . Database Lockouts . | . . . . . . . . . . . . . . . Manual 18 | . 7 . 1 . 3 2 3 . . . . . . 2 Terminals 23 | . 8 . . . 3 4 3 . . . . 2 . 3 Fabricators 8 | . . . . . . . 3 . . . . 3 . 2 Repair Stations 4 | . . . . . . . . . . . . . . 4 Recycling Units . | . . . . . . . . . . . . . . . Scanalyzers . | . . . . . . . . . . . . . . . Garrison Access 2 | . . . . . 2 . . . . . . . . . Terminal Hacks 38 | . 1 1 5 1 . 1 . . . 27 . 1 . 1 Record 15 | . . . 4 . . . . . . 11 . . . . Part Schematic 9 | . . . . . . . . . . 9 . . . . Robot Schematic 4 | . . . . . . . . . . 4 . . . . Prototype ID Bank 3 | . . . . . . . . . . 3 . . . . Open Door 2 | . . 1 . 1 . . . . . . . . . . Open DSF 2 | . . . . . . . . . . . . 1 . 1 Branch Access Points 1 | . . . . . . 1 . . . . . . . . Hauler Manifests 1 | . 1 . . . . . . . . . . . . . Proto ID Catalog 1 | . . . 1 . . . . . . . . . . . Fabricator Hacks 4 | . . . . . . . . . . . . 2 . 2 Load Schematic 2 | . . . . . . . . . . . . 1 . 1 Build 2 | . . . . . . . . . . . . 1 . 1 Repair Station Hacks 2 | . . . . . . . . . . . . . . 2 Scan Component 1 | . . . . . . . . . . . . . . 1 Repair 1 | . . . . . . . . . . . . . . 1 Recycling Unit Hacks . | . . . . . . . . . . . . . . . Scanalyzer . | . . . . . . . . . . . . . . . Garrison Access Hacks 1 | . . . . . 1 . . . . . . . . . Seal Access 1 | . . . . . 1 . . . . . . . . . Unauthorized Hacks 7 | . 4 . . . 1 1 . . . . . . . 1 Terminals 7 | . 4 . . . 1 1 . . . . . . . 1 Assimilate 1 | . . . . . 1 . . . . . . . . . Botnet 4 | . 2 . . . . 1 . . . . . . . 1 Skim 2 | . 2 . . . . . . . . . . . . . Fabricators . | . . . . . . . . . . . . . . . Repair Stations . | . . . . . . . . . . . . . . . Recycling Units . | . . . . . . . . . . . . . . . Scanalyzers . | . . . . . . . . . . . . . . . Garrison Access . | . . . . . . . . . . . . . . . Data Cores Recovered 1 | . 1 . . . . . . . . . . . . . Used . | . . . . . . . . . . . . . . . Hacking Detections 11 | . 2 . . . 1 1 3 . . . . 2 . 2 Full Trace Events 4 | . . . . . 1 1 . . . . . 1 . 1 Feedback Events . | . . . . . . . . . . . . . . . Feedback Blocked . | . . . . . . . . . . . . . . . Robot Schematics Acquired 4 | . . . . . . . . . . 4 . . . . Robots Built . | . . . . . . . . . . . . . . . Authchips . | . . . . . . . . . . . . . . . Time . | . . . . . . . . . . . . . . . Total Robot Build Rating . | . . . . . . . . . . . . . . . Part Schematics Acquired 9 | . . . . . . . . . . 9 . . . . Parts Built 3 | . . . . . . . . . . . . 1 . 2 Authchips 1 | . . . . . . . . . . . . . . 1 Time 210 | . . . . . . . . . . . . 152 . 58 Total Part Build Rating 19 | . . . . . . . . . . . . 5 . 14 Parts Repaired 1 | . . . . . . . . . . . . . . 1 Time 28 | . . . . . . . . . . . . . . 28 Parts Recycled . | . . . . . . . . . . . . . . . Recycled Matter . | . . . . . . . . . . . . . . . Retrieved Matter . | . . . . . . . . . . . . . . . Retrieved Components . | . . . . . . . . . . . . . . . Parts Scanalyzed . | . . . . . . . . . . . . . . . Part Schematics Acquired . | . . . . . . . . . . . . . . . Parts Damaged . | . . . . . . . . . . . . . . . Bothacking | -11 -10 -10 -10 -9 -8 -7 -6 -6 -6 -6 -5 -5 -5 -4 ------------ Run | Yrd Mat Min Exi Min Mat Fac Fac Low Low Dat Pro Fac DSF Fac Used RIF Installer . | . . . . . . . . . . . . . . . Robots Hacked 1 | . . . . . . . . . . . . . . 1 Non-combat . | . . . . . . . . . . . . . . . Combat . | . . . . . . . . . . . . . . . Robot Hacks Applied . | . . . . . . . . . . . . . . . Manual 1 | . . . . . . . . . . . . . . 1 Relay Couplers Released . | . . . . . . . . . . . . . . . Fabnet Peak Effective % . | . . . . . . . . . . . . . . . Robots Rewired . | . . . . . . . . . . . . . . . Allies Hacked . | . . . . . . . . . . . . . . . Hacks Repelled . | . . . . . . . . . . . . . . . Allies | -11 -10 -10 -10 -9 -8 -7 -6 -6 -6 -6 -5 -5 -5 -4 -------- Run | Yrd Mat Min Exi Min Mat Fac Fac Low Low Dat Pro Fac DSF Fac Total Allies 1 | . . . . . . . . . . . . . . 1 Largest Group 1 | . . . . . . . . . . . . . . 1 Highest-Rated Group 116 | . . . . . . . . . . . . . . 116 Highest-Rated Ally 116 | . . . . . . . . . . . . . . 116 Total Orders 17 | . . . . . . . . . 12 . 5 . . . EXPLORE 17 | . . . . . . . . . 12 . 5 . . . Ally Attacks 25 | . . . . . . . . . 11 . 5 . . 9 Total Damage 1079 | . . . . . . . . . . . . . . 1079 Kills 9 | . . . . . . . . . . . . . . 9 Allies Corrupted . | . . . . . . . . . . . . . . . Allies Melted . | . . . . . . . . . . . . . . . Intel | -11 -10 -10 -10 -9 -8 -7 -6 -6 -6 -6 -5 -5 -5 -4 ------- Run | Yrd Mat Min Exi Min Mat Fac Fac Low Low Dat Pro Fac DSF Fac Active Infowar (turns) 4613 | 56 788 290 . . 922 294 528 205 575 82 468 397 8 . Optics 1948 | . . . . . 904 293 528 205 18 . . . . . Sensors 1733 | . . . . . . . 7 205 575 82 468 396 . . Seismic 1491 | 56 788 290 . . 357 . . . . . . . . . Cloaking 17 | . . . . . . . . 7 1 . . 1 8 . Jamming 2 | . . . . . . 1 1 . . . . . . . Robot Analysis Total 151 | . . . . . . . . . . 151 . . . . Derelict Logs Recovered 6 | . . 1 . . . . . 2 1 . 2 . . . Drone Launches 16 | . . . . . . . . . 11 . 5 . . . Drone Recoveries . | . . . . . . . . . . . . . . . Exploration | -11 -10 -10 -10 -9 -8 -7 -6 -6 -6 -6 -5 -5 -5 -4 ------------- Run | Yrd Mat Min Exi Min Mat Fac Fac Low Low Dat Pro Fac DSF Fac Turns Passed 7109 | 180 788 622 248 234 937 997 534 205 575 82 484 518 34 671 Spaces Moved 6607 | 87 384 476 206 147 497 763 865 317 790 119 527 473 77 879 Core 90 | 29 9 . . . . . . . . . . . . 52 Treads 127 | 58 69 . . . . . . . . . . . . . Legs 2217 | . 306 476 206 147 497 585 . . . . . . . . Wheels . | . . . . . . . . . . . . . . . Hover 327 | . . . . . . . . . . . . . . 327 Flight 3846 | . . . . . . 178 865 317 790 119 527 473 77 500 Fastest Speed 23 | 50 120 120 120 120 120 26 24 24 23 23 26 27 27 32 Average Speed 66 | 139 130 120 120 120 122 113 24 24 25 23 29 27 34 52 Slowest Speed 250 | 200 250 120 120 120 190 190 24 24 111 26 108 28 125 200 Overloaded Moves . | . . . . . . . . . . . . . . . Propulsion Burnouts . | . . . . . . . . . . . . . . . Robots Hopped 13 | . . . . . . . . . . 1 . . 1 11 Potential Cave-ins . | . . . . . . . . . . . . . . . Cave-ins Triggered . | . . . . . . . . . . . . . . . Exploration Rate (%) 48 | 6 77 95 59 23 34 13 28 54 98 78 72 9 50 32 Regions Visited 14 Branch Regions 7 Pre-discovered Areas 32 | . . . 1 1 . . . 1 . 29 . . . . Known Exits Taken 5 | . . . . . 1 . 1 1 1 . . 1 . . Unknown Exits Taken 8 | 1 1 1 1 1 . 1 . . . 1 1 . . . Scrap Searched 12 | . . 1 . . . . . 2 8 . 1 . . . Spaces Dug 49 | . . . . . . . 12 9 6 1 . 20 1 . Terrain Destroyed 168 | . . 6 . 79 29 . 12 9 11 1 . 20 1 . Melee 49 | . . . . . . . 12 9 6 1 . 20 1 . Projectile 1 | . . . . . 1 . . . . . . . . . AOE 118 | . . 6 . 79 28 . . . 5 . . . . . Terrain Rammed . | . . . . . . . . . . . . . . . Walls Destroyed . | . . . . . . . . . . . . . . . Machines Disabled . | . . . . . . . . . . . . . . . Actions | -11 -10 -10 -10 -9 -8 -7 -6 -6 -6 -6 -5 -5 -5 -4 --------- Run | Yrd Mat Min Exi Min Mat Fac Fac Low Low Dat Pro Fac DSF Fac Total 8910 | 120 572 514 208 179 735 866 1158 426 1140 163 846 828 81 1074 Wait 1713 | . 100 11 . 3 117 32 240 94 304 39 296 321 . 156 Move 6566 | 86 383 475 205 146 496 762 864 316 789 116 526 472 74 856 Hop 13 | . . . . . . . . . . 1 . . 1 11 Pick Up 102 | 13 14 9 1 1 16 18 6 1 6 . 6 2 1 8 Fast Attach 31 | 1 . . . 1 8 3 9 . 2 . . 3 . 4 Attach 66 | 6 5 1 . 1 10 9 4 . 7 . 6 3 . 14 Detach 16 | . . . . . 3 . 1 . 2 1 2 2 1 4 Swap 46 | . 9 3 . 4 16 6 2 3 3 . . . . . Drop 90 | 1 6 7 2 5 18 19 11 1 9 . 3 3 2 3 Fire 166 | 13 50 8 . 18 49 16 3 . 2 . 4 . . 3 Melee 78 | . . . . . . . 18 11 16 6 3 22 2 . Ram 1 | . . . . . . . . . . . . . . 1 Kick 8 | . 5 . . . 2 1 . . . . . . . . Crush . | . . . . . . . . . . . . . . . Escape Stasis 14 | . . . . . . . . . . . . . . 14 Rewire . | . . . . . . . . . . . . . . . Trap . | . . . . . . . . . . . . . . . Miscellaneous . | . . . . . . . . . . . . . . . Route ------- -11/Scrapyard -10/Materials (discovered 4 exits: [*Mat x2] / *Min / [*Sub]) -10/Mines (discovered 3 exits: [*Mat x2] / *Exi) -10/Exiles -9/Mines -8/Materials (discovered 2 exits: *Fac x2) -7/Factory (discovered 3 exits: *Fac / Low x2) -6/Factory -6/Lower Caves -6/Lower Caves (discovered 2 exits: *Fac / *Dat) -6/Data Miner -5/Proximity Caves -5/Factory (discovered 2 exits: Upp / DSF) -5/DSF -4/Factory (discovered 1 exit: [*Upp]) History --------- Turn | Location | Event 8 | -11/Scrapyard | Discovered new exit (range 15) 181 | -11/Scrapyard | Entered Materials 315 | -10/Materials | Build established: Mutant 330 | -10/Materials | Discovered new exit (range 10) 521 | -10/Materials | Lost 4 parts (2n2w) 791 | -10/Materials | Discovered new exit (range 3) 845 | -10/Materials | Discovered new exit (range 16) 951 | -10/Materials | Core integrity fell below 50% 951 | -10/Materials | Discovered new exit (range 16) 969 | -10/Materials | Entered Mines 985 | -10/Mines | Discovered new exit (range 12) 1047 | -10/Mines | Learned 8 Materials zone layouts 1087 | -10/Mines | Discovered new exit (range 15) 1107 | -10/Mines | Met a Derelict shopkeep closing up shop 1341 | -10/Mines | Received a Rocket Launcher from a helpful Derelict 1433 | -10/Mines | Deemed a non-threat by the Exiles lab entrance 1433 | -10/Mines | Discovered new exit (range 5) 1591 | -10/Mines | Entered Exiles 1620 | -10/Exiles | Met 8R-AWN 1642 | -10/Exiles | Met EX-HEX 1674 | -10/Exiles | Met EX-BIN 1687 | -10/Exiles | Aligned with FarCom system 1689 | -10/Exiles | Given EX-Vault access code 1716 | -10/Exiles | Opened EX-Vault 1726 | -10/Exiles | Found Firepult 1748 | -10/Exiles | Warned to stay clear of 0b10 Research branches 1783 | -10/Exiles | Met EX-DEC 1789 | -10/Exiles | Learned location of Zion (-7) 1824 | -10/Exiles | Discovered new exit (range 14) 1839 | -10/Exiles | Left Exiles lab with Firepult 1839 | -10/Exiles | Entered Mines 1840 | -9/Mines | Discovered new exit (range 12) 1857 | -9/Mines | Core integrity fell below 20% 1888 | -9/Mines | Learned location of Storage (-9) 1921 | -9/Mines | Assembled infested the area 1926 | -9/Mines | Assisted by a Guerilla fighting off Assembled 1994 | -9/Mines | Found the Drone Emporium 2003 | -9/Mines | Found Prototype Device 2073 | -9/Mines | Entered Materials 2073 | -8/Materials | Evolved 4 slots: Propulsion x2, Utility x2 2074 | -8/Materials | Identified exit to Factory 2362 | -8/Materials | Destroyed 9 combat bots 2445 | -8/Materials | Identified Bomb Drone Bay 2596 | -8/Materials | Build established: Scavenger-Mutant 2817 | -8/Materials | Discovered exit to Factory (range 5) 3010 | -8/Materials | Entered Factory 3010 | -7/Factory | Evolved 2 slots: Propulsion x1, Utility x1 3211 | -7/Factory | Discovered new exit (range 18) 3275 | -7/Factory | Identified exit to Lower Caves 4007 | -7/Factory | Entered another Factory area 4007 | -6/Factory | Evolved 2 slots: Propulsion x1, Utility x1 4198 | -6/Factory | Build established: Sprinter 4266 | -6/Factory | Discovered new exit (range 12) 4269 | -6/Factory | Identified exit to Lower Caves 4541 | -6/Factory | Entered Lower Caves 4570 | -6/Lower Caves | Identified exit to Lower Caves 4737 | -6/Lower Caves | Attacked by a faux Warlord 4746 | -6/Lower Caves | Entered another Lower Caves area 4977 | -6/Lower Caves | Discovered new exit (range 37) 5179 | -6/Lower Caves | Attracted the attention of an 0b10 outpost 5219 | -6/Lower Caves | Encountered a Warlord checkpoint 5238 | -6/Lower Caves | Learned Factory stockpile data 5316 | -6/Lower Caves | Discovered new exit (range 6) 5317 | -6/Lower Caves | Identified exit to Data Miner 5321 | -6/Lower Caves | Entered Data Miner 5321 | -6/Data Miner | Discovered new exit (range 6) 5326 | -6/Data Miner | Met Data Miner 5330 | -6/Data Miner | Learned location of Section 7 (-2) 5330 | -6/Data Miner | Acquired the access code to Warlord's prototype stash 5334 | -6/Data Miner | Received God Mode back door access code from Data Miner 5369 | -6/Data Miner | Interfaced with the Data Conduit 5403 | -6/Data Miner | Entered Proximity Caves 5448 | -5/Proximity Caves | Learned Factory stockpile data 5653 | -5/Proximity Caves | Received a Behemoth hack from an annoying Tinkerer 5808 | -5/Proximity Caves | Discovered new exit (range 7) 5831 | -5/Proximity Caves | Spotted B-75 Beast 5871 | -5/Proximity Caves | Learned location of 1 exit from Factory 5887 | -5/Proximity Caves | Entered Factory 5887 | -5/Factory | Evolved 2 slots: Power x1, Utility x1 5888 | -5/Factory | Identified exit to Upper Caves 5890 | -5/Factory | Loaded intel: 248 machine locations 6048 | -5/Factory | Fabricated Lgt. Regenerative Plating? 6200 | -5/Factory | Build established: Scout 6396 | -5/Factory | Identified exit to DSF 6405 | -5/Factory | Entered DSF 6406 | -5/DSF | Loaded intel: 4 machine locations 6413 | -5/DSF | Discovered new exit (range 11) 6430 | -5/DSF | Additional patrols routed to DSF 6439 | -5/DSF | Entered Factory 6439 | -4/Factory | Evolved 2 slots: Utility x2 6441 | -4/Factory | Loaded intel: 301 machine locations 6465 | -4/Factory | Lost 8 parts (1p4n2u1w) 6634 | -4/Factory | Fabricated Impulse Thruster (x2) 6752 | -4/Factory | Build established: Mutant 6762 | -4/Factory | Repaired Field Propulsion Drive? 6799 | -4/Factory | Spotted B-86 Titan 6802 | -4/Factory | Befriended a Behemoth using the annoying Tinkerer's hack 6808 | -4/Factory | Discovered new exit (range 9) 6830 | -4/Factory | Garrison activated, responded to threat 6958 | -4/Factory | Lost 4 parts (1p1n2u) 7052 | -4/Factory | Intercept squad dispatched 7070 | -4/Factory | Spotted Tracker 7071 | -4/Factory | Spotted Tracker 7095 | -4/Factory | Core integrity fell below 50% 7100 | -4/Factory | Spotted Combat Programmer 7100 | -4/Factory | Spotted Combat Programmer 7105 | -4/Factory | Core integrity fell below 20% 7106 | -4/Factory | System corruption reached 10% 7110 | -4/Factory | Destroyed by Tracker with Linked Autogun Last Messages --------------- 07075_ Adv. Melee Analysis Suite destroyed. 07075_ Imp. Gyrokinetic Inverter temporarily disabled. 07079_ Impulse Thruster destroyed. 07086_ Dropped Med. Storage Unit. 07089_ P-70 Sage resets Tracker, system corruption cleaned. 07096_ Hacking Suite destroyed. 07098_ Slammed into K-01 Serf. 07098_ K-01 Serf destroyed. 07098_ Adv. Melee Analysis Suite destroyed. 07098_ System corrupted by crushing effect (+4). 07099_ Acquired 23 matter. 07099_ Imp. Gyrokinetic Inverter temporarily disabled. 07101_ Penetrated by EMDS Slug. 07102_ Imp. Gyrokinetic Inverter destroyed. 07103_ Penetrated by EMDS Slug. 07103_ Imp. Gyrokinetic Inverter destroyed. 07104_ Combat Programmer Cld. Linear Gravjet temporarily disabled. 07105_ Penetrated by EMDS Slug. 07106_ TGVUX